[Event "Open Cappelle-la-Grande"]
[Date "2026.02.25"]
[White "Poetsch, Hagen"]
[Black "Ruzhansky, Elias"]
[WhiteElo "2433"]
[BlackElo "2462"]
[Round "7.7.4"]
[Result "1/2-1/2"]
[TimeControl "40/5400+30:1800+30"]

e4 {[%clk 1:26:54]} c5 {[%clk 1:30:47]} Nf3 {[%clk 1:27:20]} d6 {[%clk 1:31:06]}
d4 {[%clk 1:27:47]} cxd4 {[%clk 1:31:22]} Nxd4 {[%clk 1:28:14]} Nf6 {[%clk
1:31:40]} Nc3 {[%clk 1:28:41]} Nc6 {[%clk 1:31:58]} Bg5 {[%clk 1:28:58]} Bd7
{[%clk 1:32:16]} Qd2 {[%clk 1:29:24]} a6 {[%clk 1:32:34]} O-O-O {[%clk 1:29:38]}
e6 {[%clk 1:32:52]} Kb1 {[%clk 1:29:22]} Nxd4 {[%clk 1:31:35]} Qxd4 {[%clk
1:29:47]} Be7 {[%clk 1:31:52]} f4 {[%clk 1:30:12]} Bc6 {[%clk 1:31:45]} f5
{[%clk 1:30:21]} Qa5 {[%clk 1:31:25]} Bc4 {[%clk 1:30:41]} exf5 {[%clk 1:31:11]}
Bd5 {[%clk 1:30:49]} O-O {[%clk 1:29:00]} Bxc6 {[%clk 1:30:54]} bxc6 {[%clk
1:29:19]} Rhf1 {[%clk 1:31:20]} h6 {[%clk 1:27:11]} Bxh6 {[%clk 1:31:25]} gxh6
{[%clk 1:25:32]} Rxf5 {[%clk 1:31:45]} d5 {[%clk 1:24:31]} Qe3 {[%clk 1:31:23]}
Ne8 {[%clk 1:21:50]} Qxh6 {[%clk 1:30:45]} Ng7 {[%clk 1:22:03]} Rd3 {[%clk
1:30:03]} Qc5 {[%clk 1:20:50]} Qxg7+ {[%clk 1:29:21]} Kxg7 {[%clk 1:21:08]} Rg3+
{[%clk 1:29:46]} Kh6 {[%clk 1:19:29]} Rh3+ {[%clk 1:30:10]} Kg7 {[%clk 1:19:44]}
Rg3+ {[%clk 1:30:34]} Kh6 {[%clk 1:18:11]} Rh3+ {[%clk 1:30:57]} Kg7 {[%clk
1:18:35]}

[Variant "Standard"]
[Site "Europe Echecs"]

[Event "Open Cappelle-la-Grande"]
[Date "2026.02.25"]
[White "Jacobsen, Mikkel Manosri"]
[Black "Bacrot, Alexandre"]
[WhiteElo "2291"]
[BlackElo "2457"]
[Round "7.7.5"]
[Result "1/2-1/2"]
[TimeControl "40/5400+30:1800+30"]

c4 {[%clk 1:28:14]} e6 {[%clk 1:30:51]} g3 {[%clk 1:28:40]} d5 {[%clk 1:31:17]}
Bg2 {[%clk 1:29:05]} Nf6 {[%clk 1:31:43]} Nf3 {[%clk 1:29:30]} Bd6 {[%clk
1:32:09]} O-O {[%clk 1:29:10]} O-O {[%clk 1:32:35]} b3 {[%clk 1:27:49]} c5
{[%clk 1:33:02]} cxd5 {[%clk 1:27:10]} exd5 {[%clk 1:33:27]} d4 {[%clk 1:27:26]}
cxd4 {[%clk 1:33:47]} Bb2 {[%clk 1:26:23]} Nc6 {[%clk 1:34:10]} Nxd4 {[%clk
1:26:44]} Re8 {[%clk 1:34:29]} Nc3 {[%clk 1:26:10]} Nxd4 {[%clk 1:24:12]} Qxd4
{[%clk 1:26:25]} Be5 {[%clk 1:24:30]} Qd3 {[%clk 1:26:49]} Bg4 {[%clk 1:23:37]}
Bf3 {[%clk 1:26:54]} Bxf3 {[%clk 1:24:01]} exf3 {[%clk 1:27:19]} Qd7 {[%clk
1:23:50]} Kg2 {[%clk 1:27:42]} h6 {[%clk 1:23:52]} Rac1 {[%clk 1:27:45]} Rac8
{[%clk 1:24:19]} Rcd1 {[%clk 1:28:01]} Rcd8 {[%clk 1:24:41]} Rc1 {[%clk
1:28:25]} Rc8 {[%clk 1:25:09]} Rcd1 {[%clk 1:28:52]} Rcd8 {[%clk 1:25:37]} Rc1
{[%clk 1:29:20]} Rc8 {[%clk 1:25:58]}

[Variant "Standard"]
[Site "Europe Echecs"]

[Event "Open Cappelle-la-Grande"]
[Date "2026.02.25"]
[White "Levin, Guy"]
[Black "Fiedorek, Michal"]
[WhiteElo "2440"]
[BlackElo "2288"]
[Round "7.7.6"]
[Result "1/2-1/2"]
[TimeControl "40/5400+30:1800+30"]

d4 {[%clk 1:30:51]} Nf6 {[%clk 1:30:12]} Nf3 {[%clk 1:31:19]} e6 {[%clk
1:30:29]} Bf4 {[%clk 1:31:42]} c5 {[%clk 1:29:45]} e3 {[%clk 1:32:07]} cxd4
{[%clk 1:30:01]} exd4 {[%clk 1:32:31]} b6 {[%clk 1:30:12]} a4 {[%clk 1:32:47]}
Be7 {[%clk 1:30:10]} h3 {[%clk 1:33:11]} O-O {[%clk 1:29:12]} Nbd2 {[%clk
1:33:32]} d6 {[%clk 1:28:05]} Bh2 {[%clk 1:33:49]} Ba6 {[%clk 1:28:01]} Bb5
{[%clk 1:34:06]} Bxb5 {[%clk 1:28:17]} axb5 {[%clk 1:34:34]} a5 {[%clk 1:26:46]}
c3 {[%clk 1:26:05]} Nbd7 {[%clk 1:23:11]} Nc4 {[%clk 1:19:54]} Qc7 {[%clk
1:22:30]} Ne3 {[%clk 1:20:21]} Qb7 {[%clk 1:19:10]} O-O {[%clk 1:18:50]} Nd5
{[%clk 1:17:04]} Nc4 {[%clk 1:11:59]} Qc7 {[%clk 1:15:13]} Nfd2 {[%clk 1:11:53]}
N7f6 {[%clk 1:14:37]} Re1 {[%clk 1:11:29]} Rfd8 {[%clk 1:13:51]} Qb3 {[%clk
1:07:36]} Rac8 {[%clk 1:13:12]} Ra4 {[%clk 1:07:29]} Ra8 {[%clk 1:13:06]}

[Variant "Standard"]
[Site "Europe Echecs"]

[Event "Open Cappelle-la-Grande"]
[Date "2026.02.25"]
[White "Bettalli, Francesco"]
[Black "Cheng, Bobby"]
[WhiteElo "2384"]
[BlackElo "2566"]
[Round "7.7.7"]
[Result "0-1"]
[TimeControl "40/5400+30:1800+30"]

e4 {[%clk 1:23:13]} c5 {[%clk 1:30:57]} Nf3 {[%clk 1:23:31]} d6 {[%clk 1:31:23]}
d4 {[%clk 1:23:55]} cxd4 {[%clk 1:31:49]} Nxd4 {[%clk 1:24:17]} Nf6 {[%clk
1:32:15]} Nc3 {[%clk 1:24:43]} a6 {[%clk 1:32:42]} Nb3 {[%clk 1:24:51]} Nc6
{[%clk 1:22:35]} Be3 {[%clk 1:25:07]} e6 {[%clk 1:19:01]} g4 {[%clk 1:25:21]} b5
{[%clk 1:17:55]} Qe2 {[%clk 1:23:23]} Be7 {[%clk 1:13:48]} O-O-O {[%clk
1:22:48]} Qc7 {[%clk 1:13:57]} Bg2 {[%clk 1:19:14]} Nd7 {[%clk 1:11:42]} f4
{[%clk 1:15:02]} O-O {[%clk 1:09:01]} Kb1 {[%clk 1:06:46]} Bb7 {[%clk 0:57:43]}
g5 {[%clk 1:01:46]} Na5 {[%clk 0:54:10]} Qf2 {[%clk 0:50:30]} Nc4 {[%clk
0:50:23]} Bc1 {[%clk 0:50:15]} b4 {[%clk 0:47:00]} Ne2 {[%clk 0:50:16]} a5
{[%clk 0:45:59]} f5 {[%clk 0:46:45]} a4 {[%clk 0:32:42]} Nbd4 {[%clk 0:45:39]}
b3 {[%clk 0:29:43]} cxb3 {[%clk 0:42:44]} axb3 {[%clk 0:30:08]} axb3 {[%clk
0:43:09]} Nce5 {[%clk 0:27:36]} Nc3 {[%clk 0:35:57]} Qa5 {[%clk 0:28:04]} Qg3
{[%clk 0:33:11]} Rfc8 {[%clk 0:27:16]} fxe6 {[%clk 0:25:18]} fxe6 {[%clk
0:18:23]} Ndb5 {[%clk 0:11:26]} Nc5 {[%clk 0:17:56]} Na3 {[%clk 0:11:40]} Nxb3
{[%clk 0:17:18]} Bh3 {[%clk 0:10:11]} Rxc3 {[%clk 0:12:00]} Bxe6+ {[%clk
0:10:16]} Kh8 {[%clk 0:12:28]} Qxc3 {[%clk 0:10:03]} Bxe4+ {[%clk 0:11:54]} Ka2
{[%clk 0:09:42]} Qxc3 {[%clk 0:11:10]} bxc3 {[%clk 0:09:59]} Nxc1+ {[%clk
0:11:34]} Rxc1 {[%clk 0:10:22]} d5 {[%clk 0:11:49]}

[Variant "Standard"]
[Site "Europe Echecs"]

[Event "Open Cappelle-la-Grande"]
[Date "2026.02.25"]
[White "Janzelj, Tim"]
[Black "Raja Rithvik R"]
[WhiteElo "2377"]
[BlackElo "2535"]
[Round "7.7.8"]
[Result "1/2-1/2"]
[TimeControl "40/5400+30:1800+30"]

e4 {[%clk 1:27:01]} c5 {[%clk 1:30:48]} Nf3 {[%clk 1:27:17]} d6 {[%clk 1:31:13]}
d4 {[%clk 1:27:36]} cxd4 {[%clk 1:31:36]} Nxd4 {[%clk 1:28:00]} Nf6 {[%clk
1:32:03]} Nc3 {[%clk 1:28:22]} a6 {[%clk 1:32:28]} f3 {[%clk 1:28:33]} e5 {[%clk
1:32:44]} Nb3 {[%clk 1:28:57]} Be7 {[%clk 1:32:58]} Be3 {[%clk 1:29:15]} Be6
{[%clk 1:33:00]} Qd2 {[%clk 1:29:06]} h5 {[%clk 1:33:07]} Be2 {[%clk 1:29:02]}
Nbd7 {[%clk 1:33:05]} Nd5 {[%clk 1:28:13]} Bxd5 {[%clk 1:33:27]} exd5 {[%clk
1:28:37]} Qc7 {[%clk 1:33:53]} Rc1 {[%clk 1:28:28]} h4 {[%clk 1:34:11]} O-O
{[%clk 1:23:48]} Nh5 {[%clk 1:32:20]} a4 {[%clk 1:20:08]} Nf4 {[%clk 1:18:45]}
a5 {[%clk 1:10:08]} Bg5 {[%clk 0:48:50]} c4 {[%clk 1:09:06]} Rc8 {[%clk
0:44:51]} Rfd1 {[%clk 1:05:00]} Nxe2+ {[%clk 0:41:42]} Qxe2 {[%clk 1:05:28]}
Bxe3+ {[%clk 0:42:05]} Qxe3 {[%clk 1:05:53]} O-O {[%clk 0:42:27]} c5 {[%clk
0:58:39]} Nxc5 {[%clk 0:38:42]} Nxc5 {[%clk 0:56:01]} dxc5 {[%clk 0:39:08]} d6
{[%clk 0:49:59]} Qc6 {[%clk 0:37:32]} Qxe5 {[%clk 0:42:57]} Rfe8 {[%clk
0:34:18]} Qf4 {[%clk 0:34:48]} Rcd8 {[%clk 0:33:08]} b4 {[%clk 0:35:05]} Qa4
{[%clk 0:33:34]} Qxh4 {[%clk 0:32:02]} cxb4 {[%clk 0:32:30]} Rd5 {[%clk
0:29:01]} Qb3 {[%clk 0:27:42]} Rcd1 {[%clk 0:27:10]} Rd7 {[%clk 0:27:43]} h3
{[%clk 0:21:09]} Qc3 {[%clk 0:22:08]} Kh2 {[%clk 0:19:05]} g6 {[%clk 0:20:15]}
R1d4 {[%clk 0:14:10]} b3 {[%clk 0:16:00]} Rd3 {[%clk 0:08:52]} Qc2 {[%clk
0:15:11]} Rh5 {[%clk 0:08:28]} gxh5 {[%clk 0:12:25]} Qg5+ {[%clk 0:08:51]} Kf8
{[%clk 0:12:51]} Qh6+ {[%clk 0:09:12]} Kg8 {[%clk 0:13:17]} Qg5+ {[%clk
0:08:30]} Kf8 {[%clk 0:13:41]} Qh6+ {[%clk 0:03:08]}

[Variant "Standard"]
[Site "Europe Echecs"]

[Event "Open Cappelle-la-Grande"]
[Date "2026.02.25"]
[White "Niedbala, Bartlomiej"]
[Black "Can, Emre"]
[WhiteElo "2377"]
[BlackElo "2541"]
[Round "7.7.9"]
[Result "0-1"]
[TimeControl "40/5400+30:1800+30"]

e4 {[%clk 1:26:11]} c5 {[%clk 1:30:37]} Nf3 {[%clk 1:26:33]} d6 {[%clk 1:30:34]}
d4 {[%clk 1:25:55]} cxd4 {[%clk 1:30:49]} Nxd4 {[%clk 1:26:22]} Nf6 {[%clk
1:30:45]} Nc3 {[%clk 1:26:40]} a6 {[%clk 1:31:04]} Bg5 {[%clk 1:26:44]} e6
{[%clk 1:30:44]} f4 {[%clk 1:24:58]} Nbd7 {[%clk 1:30:53]} Qf3 {[%clk 1:22:37]}
Qc7 {[%clk 1:30:32]} O-O-O {[%clk 1:21:58]} b5 {[%clk 1:30:18]} e5 {[%clk
1:20:30]} Bb7 {[%clk 1:30:40]} Qh3 {[%clk 1:20:53]} dxe5 {[%clk 1:30:48]} Nxe6
{[%clk 1:21:20]} fxe6 {[%clk 1:30:19]} Qxe6+ {[%clk 1:21:08]} Be7 {[%clk
1:30:36]} Bxb5 {[%clk 1:21:12]} axb5 {[%clk 1:21:05]} Nxb5 {[%clk 1:21:21]} Qc6
{[%clk 1:17:14]} Nd6+ {[%clk 1:20:50]} Kd8 {[%clk 1:17:36]} fxe5 {[%clk
1:08:59]} Nd5 {[%clk 0:24:24]} Bxe7+ {[%clk 0:36:42]} Kc7 {[%clk 0:24:34]} c4
{[%clk 0:25:35]} Nxe7 {[%clk 0:22:43]} Qxe7 {[%clk 0:23:09]} Rxa2 {[%clk
0:22:24]} Kb1 {[%clk 0:16:23]} Rha8 {[%clk 0:19:02]} Nb5+ {[%clk 0:04:19]} Kb8
{[%clk 0:19:10]} Qd6+ {[%clk 0:03:53]} Qxd6 {[%clk 0:19:08]} Nxd6 {[%clk
0:04:18]} Bxg2 {[%clk 0:03:57]} Rhg1 {[%clk 0:03:26]} Ra1+ {[%clk 0:03:42]} Kc2
{[%clk 0:03:53]} Rxd1 {[%clk 0:04:05]} Rxd1 {[%clk 0:04:18]} Nxe5 {[%clk
0:04:24]} Re1 {[%clk 0:03:47]} Ng6 {[%clk 0:03:18]} Nf5 {[%clk 0:03:02]} Kb7
{[%clk 0:02:13]} Nxg7 {[%clk 0:03:19]} Rf8 {[%clk 0:02:26]} Kd2 {[%clk 0:02:16]}
Bh3 {[%clk 0:02:41]} Re3 {[%clk 0:00:37]} Rf2+ {[%clk 0:02:38]} Re2 {[%clk
0:00:58]} Rf7 {[%clk 0:02:20]} Ne6 {[%clk 0:00:52]} Rf1 {[%clk 0:01:42]} Nc5+
{[%clk 0:00:57]} Kc6 {[%clk 0:01:53]} Nd3 {[%clk 0:01:26]} Nf4 {[%clk 0:01:51]}
Re3 {[%clk 0:01:05]} Bf5 {[%clk 0:01:51]} Ne5+ {[%clk 0:00:43]} Kc5 {[%clk
0:02:02]} Rf3 {[%clk 0:00:36]} Rxf3 {[%clk 0:02:11]} Nxf3 {[%clk 0:01:02]} Kxc4
{[%clk 0:02:27]} Ke3 {[%clk 0:28:22]} Ng6 {[%clk 0:27:18]} Ng5 {[%clk 0:26:54]}
Ne7 {[%clk 0:25:59]} Kf4 {[%clk 0:25:47]} Kd5 {[%clk 0:26:16]} Nf3 {[%clk
0:22:27]} Be4 {[%clk 0:25:10]} Ng5 {[%clk 0:20:11]} Bg6 {[%clk 0:23:45]} Nf3
{[%clk 0:18:07]} Nc6 {[%clk 0:23:06]} Kg5 {[%clk 0:15:04]} Ne5 {[%clk 0:20:33]}
Nd2 {[%clk 0:09:36]} Nc4 {[%clk 0:19:02]} Nf3 {[%clk 0:07:37]} Be4 {[%clk
0:18:50]} Ng1 {[%clk 0:07:38]} Nxb2 {[%clk 0:18:56]} Nh3 {[%clk 0:07:04]} Nc4
{[%clk 0:07:57]} Kh6 {[%clk 0:06:49]} Ne3 {[%clk 0:07:40]} Ng5 {[%clk 0:07:01]}
Ng4+ {[%clk 0:07:56]} Kh5 {[%clk 0:00:57]} Nf6+ {[%clk 0:07:52]} Kh6 {[%clk
0:01:25]} Ke5 {[%clk 0:07:00]} Kg7 {[%clk 0:00:59]} Bg6 {[%clk 0:04:03]} h4
{[%clk 0:00:38]} Bd3 {[%clk 0:02:23]} Kh6 {[%clk 0:00:33]} Kd6 {[%clk 0:02:34]}
Kg7 {[%clk 0:00:34]} Ke7 {[%clk 0:02:58]} Nf3 {[%clk 0:00:32]} Be4 {[%clk
0:01:33]} Ng5 {[%clk 0:00:47]} Bg6 {[%clk 0:01:32]} Nf3 {[%clk 0:00:32]} Ne8+
{[%clk 0:01:40]} Kh6 {[%clk 0:00:34]} Nd6 {[%clk 0:01:30]} h5 {[%clk 0:00:39]}
Be4 {[%clk 0:01:16]} Nh2 {[%clk 0:00:34]} Kf7 {[%clk 0:01:10]} Ng4 {[%clk
0:00:51]} Bb1 {[%clk 0:01:02]} Kg5 {[%clk 0:00:59]} Kg7 {[%clk 0:01:23]} h6+
{[%clk 0:00:40]} Kf7 {[%clk 0:01:45]} Ne5+ {[%clk 0:00:33]} Ke6 {[%clk 0:02:08]}
Ng4 {[%clk 0:00:31]} Nf7+ {[%clk 0:02:26]} Kf4 {[%clk 0:00:35]} Bg6 {[%clk
0:02:41]} Kg3 {[%clk 0:00:34]} Bf5 {[%clk 0:02:29]} Ne3 {[%clk 0:00:49]} Nxh6
{[%clk 0:02:47]} Kh4 {[%clk 0:01:11]} Bg6 {[%clk 0:03:03]}

[Variant "Standard"]
[Site "Europe Echecs"]

[Event "Open Cappelle-la-Grande"]
[Date "2026.02.25"]
[White "Godart, Francois"]
[Black "Degraeve, Jean-Marc"]
[WhiteElo "2372"]
[BlackElo "2503"]
[Round "7.7.10"]
[Result "0-1"]
[TimeControl "40/5400+30:1800+30"]

e4 {[%clk 1:27:28]} c5 {[%clk 1:30:34]} Nf3 {[%clk 1:27:42]} g6 {[%clk 1:30:54]}
c3 {[%clk 1:27:08]} Bg7 {[%clk 1:30:10]} d4 {[%clk 1:27:30]} cxd4 {[%clk
1:30:34]} cxd4 {[%clk 1:27:54]} d5 {[%clk 1:30:58]} e5 {[%clk 1:28:18]} a6
{[%clk 1:31:03]} Be2 {[%clk 1:25:14]} Nc6 {[%clk 1:30:31]} O-O {[%clk 1:24:46]}
Bg4 {[%clk 1:19:24]} Nbd2 {[%clk 1:22:42]} e6 {[%clk 1:16:38]} h3 {[%clk
1:19:43]} Bxf3 {[%clk 1:16:52]} Nxf3 {[%clk 1:20:06]} Nge7 {[%clk 1:16:59]} Bd3
{[%clk 1:02:36]} Qb6 {[%clk 1:16:55]} Re1 {[%clk 0:42:18]} O-O {[%clk 1:17:00]}
Kh1 {[%clk 0:42:31]} Rfc8 {[%clk 1:15:50]} b3 {[%clk 0:39:34]} Rc7 {[%clk
1:15:13]} Be3 {[%clk 0:36:52]} Rac8 {[%clk 1:15:13]} Rc1 {[%clk 0:31:49]} Nf5
{[%clk 1:06:48]} Bxf5 {[%clk 0:29:35]} exf5 {[%clk 1:06:58]} Bg5 {[%clk
0:28:54]} Nb4 {[%clk 0:59:25]} Rxc7 {[%clk 0:28:41]} Qxc7 {[%clk 0:59:48]} Qd2
{[%clk 0:27:31]} Nc6 {[%clk 0:59:51]} Qf4 {[%clk 0:17:48]} Qa5 {[%clk 0:55:48]}
Bf6 {[%clk 0:13:29]} Re8 {[%clk 0:52:51]} Re3 {[%clk 0:07:17]} Qa3 {[%clk
0:49:55]} Nh4 {[%clk 0:05:00]} Nd8 {[%clk 0:43:12]} Bxg7 {[%clk 0:01:01]} Ne6
{[%clk 0:42:33]} Qf3 {[%clk 0:01:30]} Kxg7 {[%clk 0:42:39]} Qxd5 {[%clk
0:01:27]} Qxa2 {[%clk 0:42:37]} Rg3 {[%clk 0:00:38]} Qb1+ {[%clk 0:41:31]} Kh2
{[%clk 0:01:03]} Rc8 {[%clk 0:41:40]} Re3 {[%clk 0:00:34]} f4 {[%clk 0:39:58]}
Re2 {[%clk 0:00:55]} Qf1 {[%clk 0:39:59]}

[Variant "Standard"]
[Site "Europe Echecs"]

[Event "Open Cappelle-la-Grande"]
[Date "2026.02.25"]
[White "Docx, Stefan"]
[Black "Eugene, Floryan"]
[WhiteElo "2367"]
[BlackElo "2478"]
[Round "7.7.11"]
[Result "0-1"]
[TimeControl "40/5400+30:1800+30"]

e4 {[%clk 1:30:55]} e6 {[%clk 1:26:26]} d4 {[%clk 1:31:04]} d5 {[%clk 1:26:54]}
Nc3 {[%clk 1:30:45]} Bb4 {[%clk 1:25:32]} Ne2 {[%clk 1:30:08]} Ne7 {[%clk
1:23:35]} a3 {[%clk 1:26:34]} Ba5 {[%clk 1:24:03]} g3 {[%clk 1:24:55]} dxe4
{[%clk 1:15:20]} b4 {[%clk 1:21:02]} Bb6 {[%clk 1:15:47]} Nxe4 {[%clk 1:21:19]}
e5 {[%clk 1:10:25]} Bb2 {[%clk 1:20:03]} exd4 {[%clk 1:04:53]} Bxd4 {[%clk
1:17:52]} O-O {[%clk 1:05:02]} Bg2 {[%clk 1:18:07]} Nbc6 {[%clk 1:05:13]} Bb2
{[%clk 1:17:58]} Qxd1+ {[%clk 1:00:16]} Rxd1 {[%clk 1:18:17]} Be6 {[%clk
1:00:37]} Nf4 {[%clk 1:10:20]} Bg4 {[%clk 1:00:25]} Rd2 {[%clk 1:10:40]} Rad8
{[%clk 1:00:11]} O-O {[%clk 1:06:01]} a5 {[%clk 0:52:34]} h3 {[%clk 1:01:06]}
Bf5 {[%clk 0:47:29]} b5 {[%clk 0:46:29]} Bxe4 {[%clk 0:40:15]} Rxd8 {[%clk
0:45:42]} Rxd8 {[%clk 0:40:44]} Bxe4 {[%clk 0:45:59]} Nd4 {[%clk 0:41:11]} a4
{[%clk 0:44:10]} Ndf5 {[%clk 0:33:31]} Kg2 {[%clk 0:41:27]} Rd2 {[%clk 0:33:30]}
Kf3 {[%clk 0:41:12]} Nd4+ {[%clk 0:33:42]} Bxd4 {[%clk 0:35:54]} Rxd4 {[%clk
0:33:10]} Bxb7 {[%clk 0:35:39]} Nf5 {[%clk 0:28:39]} Nd5 {[%clk 0:27:36]} Rxa4
{[%clk 0:26:53]} Nxb6 {[%clk 0:27:56]} cxb6 {[%clk 0:27:19]} c3 {[%clk 0:27:26]}
Rc4 {[%clk 0:23:10]} Rd1 {[%clk 0:27:00]} Rxc3+ {[%clk 0:21:34]} Kg2 {[%clk
0:27:22]} g6 {[%clk 0:20:54]} Rd7 {[%clk 0:26:00]} Kf8 {[%clk 0:17:22]} g4
{[%clk 0:23:30]} Nh4+ {[%clk 0:16:28]} Kh2 {[%clk 0:23:52]} Nf3+ {[%clk
0:15:16]} Kg2 {[%clk 0:20:13]} Rd3 {[%clk 0:11:28]} Rc7 {[%clk 0:19:53]} Nd4
{[%clk 0:11:38]} Rd7 {[%clk 0:18:57]} Ne6 {[%clk 0:12:03]}

[Variant "Standard"]
[Site "Europe Echecs"]

[Event "Open Cappelle-la-Grande"]
[Date "2026.02.25"]
[White "Lamaze, Simon"]
[Black "Eugene, Nathael"]
[WhiteElo "2450"]
[BlackElo "2304"]
[Round "7.7.12"]
[Result "1-0"]
[TimeControl "40/5400+30:1800+30"]

d4 {[%clk 1:30:56]} f5 {[%clk 1:30:47]} Nh3 {[%clk 1:31:22]} Nf6 {[%clk
1:26:21]} Bg5 {[%clk 1:30:49]} e6 {[%clk 1:24:40]} Nf4 {[%clk 1:30:51]} Be7
{[%clk 1:22:42]} h4 {[%clk 1:28:28]} d5 {[%clk 1:19:37]} e3 {[%clk 1:28:02]} c5
{[%clk 1:19:06]} Nd2 {[%clk 1:24:03]} Nc6 {[%clk 1:15:11]} c3 {[%clk 1:23:12]}
O-O {[%clk 1:09:50]} a4 {[%clk 1:16:06]} Qb6 {[%clk 1:03:55]} Rb1 {[%clk
1:13:08]} Bd7 {[%clk 0:58:25]} Bb5 {[%clk 1:12:37]} Bd6 {[%clk 0:55:11]} Nd3
{[%clk 1:01:09]} c4 {[%clk 0:47:12]} Bf4 {[%clk 0:59:29]} Nb8 {[%clk 0:47:30]}
Bxd6 {[%clk 0:56:16]} Qxd6 {[%clk 0:44:59]} Nf4 {[%clk 0:55:53]} a6 {[%clk
0:30:50]} Bxd7 {[%clk 0:52:18]} Qxd7 {[%clk 0:31:16]} a5 {[%clk 0:52:08]} Nc6
{[%clk 0:31:44]} Qa4 {[%clk 0:50:01]} Rae8 {[%clk 0:30:20]} b3 {[%clk 0:46:46]}
Qc7 {[%clk 0:22:28]} bxc4 {[%clk 0:45:55]} Nxa5 {[%clk 0:18:48]} c5 {[%clk
0:44:41]} e5 {[%clk 0:17:30]} dxe5 {[%clk 0:43:39]} Rxe5 {[%clk 0:16:07]} O-O
{[%clk 0:43:12]} Re7 {[%clk 0:14:53]} Ra1 {[%clk 0:41:34]} Nc6 {[%clk 0:15:06]}
Nf3 {[%clk 0:41:35]} Ne5 {[%clk 0:13:23]} Nd4 {[%clk 0:36:40]} Qc8 {[%clk
0:13:18]} Rfb1 {[%clk 0:34:22]} Rd8 {[%clk 0:13:06]} Rb6 {[%clk 0:25:47]} Qxc5
{[%clk 0:11:03]} Rxf6 {[%clk 0:25:52]} gxf6 {[%clk 0:11:04]} Nfe6 {[%clk
0:23:52]} Qc8 {[%clk 0:10:41]} Nxd8 {[%clk 0:24:14]} Qxd8 {[%clk 0:11:07]} Nxf5
{[%clk 0:24:31]} Rc7 {[%clk 0:11:23]} Rd1 {[%clk 0:22:36]} Qc8 {[%clk 0:08:17]}
Qf4 {[%clk 0:21:53]} Qe6 {[%clk 0:07:12]} e4 {[%clk 0:18:02]} Rxc3 {[%clk
0:06:03]} Rxd5 {[%clk 0:17:35]} Qe8 {[%clk 0:04:59]} f3 {[%clk 0:14:00]} Kh8
{[%clk 0:04:41]} Qh6 {[%clk 0:10:55]} Nxf3+ {[%clk 0:03:24]} gxf3 {[%clk
0:11:17]} Qg8+ {[%clk 0:03:49]} Kh1 {[%clk 0:11:16]} Rc1+ {[%clk 0:04:08]} Qxc1
{[%clk 0:11:40]} Qg2+ {[%clk 0:04:31]} Kxg2 {[%clk 0:12:05]}

[Variant "Standard"]
[Site "Europe Echecs"]

[Event "Open Cappelle-la-Grande"]
[Date "2026.02.25"]
[White "Robert, Yoann"]
[Black "Carnicelli, Valerio"]
[WhiteElo "2273"]
[BlackElo "2438"]
[Round "7.7.13"]
[Result "1/2-1/2"]
[TimeControl "40/5400+30:1800+30"]

f4 {[%clk 1:15:23]} d5 {[%clk 1:30:53]} Nf3 {[%clk 1:15:49]} Nf6 {[%clk
1:31:16]} e3 {[%clk 1:15:59]} g6 {[%clk 1:29:59]} Be2 {[%clk 1:16:24]} Bg7
{[%clk 1:30:24]} O-O {[%clk 1:16:48]} O-O {[%clk 1:30:39]} d3 {[%clk 1:17:14]}
c5 {[%clk 1:29:51]} a4 {[%clk 1:17:40]} Nc6 {[%clk 1:29:46]} Ne5 {[%clk
1:18:05]} Qc7 {[%clk 1:28:52]} Nxc6 {[%clk 1:18:30]} Qxc6 {[%clk 1:29:06]} Bf3
{[%clk 1:18:56]} Rd8 {[%clk 1:25:01]} Qe2 {[%clk 1:18:34]} Qa6 {[%clk 1:17:38]}
Nc3 {[%clk 1:17:07]} e6 {[%clk 1:16:12]} Nb5 {[%clk 1:10:06]} Ne8 {[%clk
1:14:23]} e4 {[%clk 1:09:48]} Bd7 {[%clk 1:13:33]} c4 {[%clk 1:01:06]} Bxb5
{[%clk 1:11:22]} cxb5 {[%clk 1:01:32]} Qd6 {[%clk 1:09:17]} e5 {[%clk 0:51:24]}
Qe7 {[%clk 1:08:27]} Be3 {[%clk 0:49:23]} Rac8 {[%clk 0:57:41]} Rac1 {[%clk
0:47:09]} b6 {[%clk 0:55:40]} Qe1 {[%clk 0:41:59]} f6 {[%clk 0:42:51]} Bf2
{[%clk 0:32:49]} fxe5 {[%clk 0:38:16]} Bh4 {[%clk 0:33:13]} Bf6 {[%clk 0:38:19]}
Bxf6 {[%clk 0:33:38]} Qxf6 {[%clk 0:36:59]} Bg4 {[%clk 0:33:52]} Ng7 {[%clk
0:35:59]} fxe5 {[%clk 0:33:35]} Qg5 {[%clk 0:35:19]} Qg3 {[%clk 0:22:47]} h5
{[%clk 0:31:50]} Bh3 {[%clk 0:22:50]} Qxg3 {[%clk 0:32:10]} hxg3 {[%clk
0:23:15]} Nf5 {[%clk 0:30:08]} g4 {[%clk 0:23:40]} hxg4 {[%clk 0:27:01]} Bxg4
{[%clk 0:24:05]} Kf7 {[%clk 0:25:51]} Ra1 {[%clk 0:16:10]} Ke7 {[%clk 0:21:51]}
a5 {[%clk 0:16:26]} Rd7 {[%clk 0:18:35]} axb6 {[%clk 0:15:27]} axb6 {[%clk
0:19:02]} Ra6 {[%clk 0:14:27]} Ne3 {[%clk 0:10:19]} Rf4 {[%clk 0:11:09]} g5
{[%clk 0:10:16]} Rfa4 {[%clk 0:11:03]} c4 {[%clk 0:09:49]} Be2 {[%clk 0:11:06]}
cxd3 {[%clk 0:02:35]} Bxd3 {[%clk 0:11:31]} Rc1+ {[%clk 0:02:48]} Kf2 {[%clk
0:11:57]} d4 {[%clk 0:02:37]} Rxb6 {[%clk 0:09:58]} Ng4+ {[%clk 0:01:29]} Ke2
{[%clk 0:10:24]} Rc5 {[%clk 0:00:43]} Kd2 {[%clk 0:07:32]} Rxe5 {[%clk 0:28:21]}
Rb8 {[%clk 0:37:42]} Nf2 {[%clk 0:24:33]} b6 {[%clk 0:37:45]} Nxd3 {[%clk
0:23:52]} Kxd3 {[%clk 0:38:09]} Re3+ {[%clk 0:19:16]} Kd2 {[%clk 0:38:34]} Rb3
{[%clk 0:17:46]} Ra7 {[%clk 0:36:27]} Kd6 {[%clk 0:12:01]} Kc2 {[%clk 0:36:02]}
Rb4 {[%clk 0:10:48]} Kd3 {[%clk 0:34:56]} g4 {[%clk 0:07:47]} g3 {[%clk
0:33:20]} Rxb2 {[%clk 0:04:35]} Ke4 {[%clk 0:33:11]}

[Variant "Standard"]
[Site "Europe Echecs"]

[Event "Open Cappelle-la-Grande"]
[Date "2026.02.25"]
[White "Moksh Amit Doshi"]
[Black "Flom, Gabriel"]
[WhiteElo "2354"]
[BlackElo "2423"]
[Round "7.7.14"]
[Result "1-0"]
[TimeControl "40/5400+30:1800+30"]

c4 {[%clk 1:24:49]} e5 {[%clk 1:30:32]} Nc3 {[%clk 1:25:08]} Nf6 {[%clk
1:30:42]} Nf3 {[%clk 1:25:17]} Nc6 {[%clk 1:30:22]} g3 {[%clk 1:25:17]} d5
{[%clk 1:30:37]} cxd5 {[%clk 1:25:38]} Nxd5 {[%clk 1:31:02]} Bg2 {[%clk
1:25:56]} Nb6 {[%clk 1:31:25]} O-O {[%clk 1:25:54]} Be7 {[%clk 1:30:16]} b3
{[%clk 1:26:15]} f6 {[%clk 1:29:59]} Bb2 {[%clk 1:26:21]} Be6 {[%clk 1:30:21]}
Rc1 {[%clk 1:23:20]} Qd7 {[%clk 1:30:36]} Ne4 {[%clk 1:12:24]} O-O-O {[%clk
1:11:43]} e3 {[%clk 1:09:54]} Bh3 {[%clk 1:05:11]} d4 {[%clk 1:05:10]} Bxg2
{[%clk 1:03:47]} Kxg2 {[%clk 1:05:18]} Qd5 {[%clk 1:02:11]} Qc2 {[%clk 1:03:25]}
exd4 {[%clk 1:01:23]} Nxd4 {[%clk 1:02:56]} Rd7 {[%clk 0:59:57]} Nxc6 {[%clk
0:58:31]} bxc6 {[%clk 1:00:26]} Qxc6 {[%clk 0:55:38]} f5 {[%clk 1:00:55]} Qxd5
{[%clk 0:55:04]} Rxd5 {[%clk 1:01:23]} Nc3 {[%clk 0:51:55]} Rd2 {[%clk 1:01:52]}
Ba1 {[%clk 0:48:34]} Bf6 {[%clk 0:58:52]} a4 {[%clk 0:46:19]} Rhd8 {[%clk
0:56:42]} a5 {[%clk 0:41:56]} Nd5 {[%clk 0:57:10]} Nxd5 {[%clk 0:41:37]} R8xd5
{[%clk 0:57:36]} Bxf6 {[%clk 0:41:55]} gxf6 {[%clk 0:58:05]} b4 {[%clk 0:41:48]}
c5 {[%clk 0:54:00]} Rc4 {[%clk 0:38:42]} Kb7 {[%clk 0:54:28]} bxc5 {[%clk
0:32:46]} Rb2 {[%clk 0:54:34]} Rh4 {[%clk 0:29:14]} Rxc5 {[%clk 0:55:02]} Rxh7+
{[%clk 0:29:37]} Ka6 {[%clk 0:55:31]} Rf7 {[%clk 0:29:44]} Rxa5 {[%clk 0:55:57]}
Rxf6+ {[%clk 0:29:48]} Rb6 {[%clk 0:56:26]} Rf7 {[%clk 0:29:07]} Rb7 {[%clk
0:56:51]} Rxb7 {[%clk 0:28:06]} Kxb7 {[%clk 0:57:17]} h4 {[%clk 0:28:32]}

[Variant "Standard"]
[Site "Europe Echecs"]